bitfinex/quotes_BTCUSD_20250714
["timestamp","ask_amount","ask_price","bid_price","bid_amount"]
[1752533026950,0.4013457,120150.0,120140.0,0.003]
[1752533027833,0.2748657,120150.0,120140.0,0.003]
[1752533028053,0.47873574,120150.0,120140.0,0.003]
[1752533028273,0.8112747,120150.0,120140.0,0.003]
[1752533029452,0.73388466,120150.0,120140.0,0.003]
[1752533031468,0.4013457,120150.0,120140.0,0.003]
[1752533042704,0.2399357,120150.0,120140.0,0.00495]
[1752533042930,0.2399357,120150.0,120140.0,0.18286606]
[1752533043069,0.3663757,120150.0,120140.0,0.44053842]
[1752533043297,0.37256862,120150.0,120140.0,0.52806147]
[1752533043495,0.37256862,120150.0,120140.0,0.44053842]
[1752533043732,0.37460862,120150.0,120140.0,0.44053842]
[1752533044451,0.37460862,120150.0,120140.0,0.4488619]
[1752533045075,0.37460862,120150.0,120140.0,0.43221487]
[1752533045256,0.37460862,120150.0,120140.0,0.18286606]
[1752533045456,0.37460862,120150.0,120140.0,0.43221487]
[1752533045686,0.37460862,120150.0,120140.0,0.42909487]
[1752533046098,0.37460862,120150.0,120140.0,0.25429881]
[1752533047137,0.37460862,120150.0,120140.0,0.42909487]
[1752533048995,0.37460862,120150.0,120140.0,0.44053842]
[1752533049167,0.37460862,120150.0,120140.0,0.50607559]
[1752533049384,0.37460862,120150.0,120140.0,0.32295598]
[1752533049588,0.37460862,120150.0,120140.0,0.25741881]
[1752533050161,0.37460862,120150.0,120140.0,0.25429881]
[1752533050600,0.39030862,120150.0,120140.0,0.25429881]
[1752533050798,0.39030862,120150.0,120140.0,0.00495]
[1752533052159,0.39030862,120150.0,120140.0,0.25429881]
[1752533052372,0.37460862,120150.0,120140.0,0.25741881]
[1752533052620,0.24612842,120150.0,120140.0,0.25741881]
[1752533052838,0.01664481,120150.0,120140.0,0.77150935]
[1752533053027,0.15969018,120150.0,120140.0,0.53048381]
[1752533053259,0.15136739,120150.0,120140.0,0.53880701]
[1752533053444,0.15136739,120150.0,120140.0,0.54713014]
[1752533053747,0.15969018,120150.0,120140.0,0.54713014]
[1752533054201,0.15136739,120150.0,120140.0,0.54713014]
[1752533054838,0.15136746,120150.0,120140.0,0.54713014]
[1752533055059,0.14304481,120150.0,120140.0,0.54713014]
[1752533055523,0.15136753,120150.0,120140.0,0.54713014]
[1752533055749,0.14304481,120150.0,120140.0,0.54713014]
[1752533055969,0.1264,120150.0,120140.0,0.54713014]
[1752533056185,0.1264,120150.0,120140.0,0.79647895]
[1752533056407,0.14304509,120150.0,120140.0,0.79647895]
[1752533056870,0.15136788,120150.0,120140.0,0.54713014]
[1752533057764,0.14304509,120150.0,120140.0,0.54713014]
[1752533057993,0.15136788,120150.0,120140.0,0.54713014]
[1752533058212,0.14304509,120150.0,120140.0,0.54713014]
[1752533058558,0.15136788,120150.0,120140.0,0.54713014]
[1752533058773,0.14304509,120150.0,120140.0,0.54713014]
[1752533058988,0.15136767,120150.0,120140.0,0.54713014]
[1752533059206,0.15969046,120150.0,120140.0,0.54713014]
[1752533059912,0.32614905,120150.0,120140.0,0.53048381]
[1752533060210,0.31782702,120150.0,120140.0,0.53048381]
[1752533060465,0.31782702,120150.0,120140.0,0.51438381]
[1752533061601,0.31782702,120150.0,120140.0,0.50606054]
[1752533062064,0.31782702,120150.0,120140.0,0.49026054]
[1752533062285,0.3095043,120150.0,120140.0,0.49026054]
[1752533062680,0.3095043,120150.0,120140.0,0.49026068]
[1752533062887,0.29285859,120150.0,120140.0,0.49026068]
[1752533063098,0.29285859,120150.0,120140.0,0.4819372]
[1752533063415,0.18489859,120150.0,120140.0,0.00807]
[1752533063674,0.31129859,120150.0,120140.0,0.00495]
[1752533067134,0.31129859,120150.0,120140.0,0.25429881]
[1752533068705,0.31129859,120150.0,120140.0,0.42077125]
[1752533068923,0.31125859,120150.0,120140.0,0.42382125]
[1752533069271,0.31125859,120150.0,120140.0,0.43214487]
[1752533069546,0.29485859,120150.0,120140.0,0.43214487]
[1752533071691,0.16849859,120150.0,120140.0,0.25734881]
[1752533071913,0.29485859,120150.0,120140.0,0.42382125]
[1752533072840,0.29485859,120150.0,120140.0,0.43214487]
[1752533075021,0.29485859,120150.0,120140.0,0.26567243]
[1752533075961,0.29485859,120150.0,120140.0,0.008]
[1752533076145,0.31125859,120150.0,120140.0,0.42382125]
[1752533076821,0.31125859,120150.0,120140.0,0.25734881]
[1752533077032,0.31125859,120150.0,120140.0,0.008]
[1752533077300,0.5606074,120150.0,120140.0,0.00495]
[1752533077526,0.5606074,120150.0,120140.0,0.003]
[1752533077527,0.53478451,120150.0,120140.0,0.003]
[1752533077755,0.66114451,120150.0,120140.0,0.003]
[1752533083316,0.53478451,120150.0,120140.0,0.003]
[1752533083527,0.66114451,120150.0,120140.0,0.003]
[1752533091513,0.53478451,120150.0,120140.0,0.003]
[1752533091732,0.66110451,120150.0,120140.0,0.003]
[1752533094388,0.4117557,120150.0,120140.0,0.003]
[1752533094603,0.65791451,120150.0,120140.0,0.003]
[1752533094830,0.2662457,120150.0,120140.0,0.003]
[1752533095067,0.01664495,120150.0,120140.0,0.73077008]
[1752533095286,0.13464237,120150.0,120140.0,0.73077008]
[1752533095472,0.15128767,120150.0,120140.0,0.73077008]
[1752533095707,0.15961046,120150.0,120140.0,0.73077008]
[1752533095922,0.14296495,120150.0,120140.0,0.73077008]
[1752533096107,0.15128767,120150.0,120140.0,0.73077008]
[1752533096305,0.15961046,120150.0,120140.0,0.73077008]
[1752533096520,0.03329046,120150.0,120140.0,0.73077008]
[1752533096731,0.15128767,120150.0,120140.0,0.73077008]
[1752533099031,0.32606988,120150.0,120140.0,0.57282622]
[1752533099563,0.31774696,120150.0,120140.0,0.58114935]
[1752533099779,0.15128837,120150.0,120140.0,0.58114935]
[1752533101078,0.32606988,120150.0,120140.0,0.57282622]
[1752533101327,0.31774716,120150.0,120140.0,0.54785641]
[1752533101540,0.31774716,120150.0,120140.0,0.52357989]
[1752533101752,0.31774716,120150.0,120140.0,0.19114947]
[1752533101963,0.31774716,120150.0,120140.0,0.5319033]
[1752533102395,0.31774716,120150.0,120140.0,0.19947288]
[1752533102633,0.30942437,120150.0,120140.0,0.19947288]
[1752533103062,0.30942437,120150.0,120140.0,0.20779622]
[1752533103727,0.12632,120150.0,120140.0,0.20779622]
[1752533103973,0.00837269,120160.0,120150.0,0.22282654]
[1752533104203,0.00837262,120160.0,120150.0,0.22798654]
[1752533104435,0.12873101,120160.0,120150.0,0.56041696]
[1752533104659,0.00837262,120160.0,120150.0,0.56041696]
[1752533104882,0.13709262,120160.0,120150.0,0.22798654]
[1752533105109,0.14541437,120160.0,120150.0,0.56041696]
[1752533105371,0.14541437,120160.0,120150.0,0.22798654]
[1752533105585,0.1454143,120160.0,120150.0,0.56041696]
[1752533105817,0.02501612,120160.0,120150.0,0.56041696]
[1752533106056,0.14573499,120160.0,120150.0,0.22798654]
[1752533106316,0.14573458,120160.0,120150.0,0.23630912]
[1752533106540,0.01669458,120160.0,120150.0,0.56873954]
[1752533106761,0.19978364,120160.0,120150.0,0.55209452]
[1752533107007,0.32878357,120160.0,120150.0,0.55209459]
[1752533107443,0.32046189,120160.0,120150.0,0.36899042]
[1752533107732,0.31214,120160.0,120150.0,0.57718029]
[1752533107950,0.14569499,120160.0,120150.0,0.59382538]
[1752533108157,0.32046196,120160.0,120150.0,0.25307252]
[1752533108793,0.32046196,120160.0,120150.0,0.2613951]
[1752533109018,0.19146196,120160.0,120150.0,0.0616455]
[1752533109251,0.32038196,120160.0,120150.0,0.24474974]
[1752533109466,0.32038196,120160.0,120150.0,0.24474967]
[1752533109687,0.32038196,120160.0,120150.0,0.25307232]
[1752533109911,0.30373798,120160.0,120150.0,0.23642695]
[1752533110131,0.30373798,120160.0,120150.0,0.2290496]
[1752533110584,0.30373798,120160.0,120150.0,0.23737218]
[1752533110766,0.30373798,120160.0,120150.0,0.2290496]
[1752533110980,0.30373798,120160.0,120150.0,0.22072695]
[1752533111657,0.30373798,120160.0,120150.0,0.0459455]
[1752533112233,0.30373798,120160.0,120150.0,0.05426842]
[1752533112632,0.30373798,120160.0,120150.0,0.2290498]
[1752533112841,0.29541575,120160.0,120150.0,0.0459455]
[1752533113274,0.29541575,120160.0,120150.0,0.10379501]
[1752533113855,0.29541575,120160.0,120150.0,0.11211793]
[1752533114042,0.29541575,120160.0,120150.0,0.10379501]
[1752533115723,0.29541575,120160.0,120150.0,0.07870951]
[1752533116166,0.17478138,120150.0,120140.0,0.00506]
[1752533116321,0.6691318,120150.0,120140.0,0.002]
[1752533116699,0.33670138,120150.0,120140.0,0.002]
[1752533116976,0.6691318,120150.0,120140.0,0.002]
[1752533117606,0.6691318,120150.0,120140.0,0.003]
[1752533117817,0.33670138,120150.0,120140.0,0.003]
[1752533118043,0.6534318,120150.0,120140.0,0.0051]
[1752533118679,0.1831041,120150.0,120140.0,0.00816]
[1752533118897,0.3117041,120150.0,120140.0,0.06136493]
[1752533119106,0.3117041,120150.0,120140.0,0.00816]
[1752533119331,0.30338138,120150.0,120140.0,0.00816]
[1752533119771,0.59647328,120160.0,120150.0,0.18310396]
[1752533119772,0.00837276,120160.0,120150.0,0.18310396]
[1752533119990,0.32006168,120160.0,120150.0,0.5444718]
[1752533120245,0.14529478,120160.0,120150.0,0.55279452]
[1752533120430,0.15361687,120160.0,120150.0,0.54447193]
[1752533120629,0.02501687,120160.0,120150.0,0.56943974]
[1752533120774,0.14529478,120160.0,120150.0,0.56943974]
[1752533120983,0.15361639,120160.0,120150.0,0.56943974]
[1752533121598,0.15361639,120160.0,120150.0,0.5611173]
[1752533121802,0.33670538,120160.0,120150.0,0.23700946]
[1752533122034,0.32838377,120160.0,120150.0,0.22120946]
[1752533122235,0.19146195,120160.0,120150.0,0.00516]
[1752533122443,0.18310389,120150.0,120140.0,0.18817947]
[1752533122805,0.19142661,120150.0,120140.0,0.20692608]
[1752533123006,0.15352746,120150.0,120140.0,0.24734921]
[1752533123573,0.16185025,120150.0,120140.0,0.24734921]
[1752533123783,0.16185025,120150.0,120140.0,0.24834921]
[1752533126789,0.17017311,120150.0,120140.0,0.24834921]
[1752533127180,0.33663176,120150.0,120140.0,0.23170288]
[1752533127523,0.32830946,120150.0,120140.0,0.24834949]
[1752533127732,0.32830946,120150.0,120140.0,0.24834907]
[1752533127861,0.16185087,120150.0,120140.0,0.24834907]
[1752533128284,0.32830946,120150.0,120140.0,0.24002594]
[1752533128634,0.19142695,120150.0,120140.0,0.24823068]
[1752533128835,0.32139151,120150.0,120140.0,0.04575121]
[1752533129387,0.32139151,120150.0,120140.0,0.21222365]
[1752533129598,0.17675151,120150.0,120140.0,0.22887068]
[1752533129809,0.30511151,120150.0,120140.0,0.23211068]
[1752533130850,0.30511151,120150.0,120140.0,0.22378727]
[1752533131062,0.30511151,120150.0,120140.0,0.23211082]
[1752533131515,0.30511151,120150.0,120140.0,0.2404343]
[1752533133332,0.30503151,120150.0,120140.0,0.2404343]
[1752533135254,0.29670859,120150.0,120140.0,0.22378727]
[1752533136538,0.31290859,120150.0,120140.0,0.22378727]
[1752533138290,0.29670859,120150.0,120140.0,0.2404343]
[1752533138875,0.29670859,120150.0,120140.0,0.23211082]
[1752533145572,0.29670859,120150.0,120140.0,0.04899121]
[1752533147239,0.29670859,120150.0,120140.0,0.22378727]
[1752533148067,0.29670859,120150.0,120140.0,0.23211082]
[1752533148272,0.14452551,120150.0,120140.0,0.24043416]
[1752533148485,0.0083223,120150.0,120140.0,0.61168771]
[1752533148702,0.16117018,120150.0,120140.0,0.61168771]
[1752533149118,0.14452474,120150.0,120140.0,0.61168771]
[1752533149323,0.33595176,120150.0,120140.0,0.61168785]
[1752533149551,0.32762884,120150.0,120140.0,0.60336458]
[1752533149956,0.32762884,120150.0,120140.0,0.61168778]
[1752533150086,0.32762884,120150.0,120140.0,0.60336458]
[1752533150293,0.32762884,120150.0,120140.0,0.61168799]
[1752533150490,0.31930654,120150.0,120140.0,0.61168799]
[1752533150697,0.31930654,120150.0,120140.0,0.60336465]
[1752533150904,0.31930654,120150.0,120140.0,0.62001112]
[1752533151169,0.31098368,120150.0,120140.0,0.62001063]
[1752533151292,0.32762925,120150.0,120140.0,0.6033643]
[1752533151520,0.32762925,120150.0,120140.0,0.58806451]
[1752533151754,0.31930633,120150.0,120140.0,0.60426451]
[1752533152093,0.32762925,120150.0,120140.0,0.61258785]
[1752533152279,0.31930633,120150.0,120140.0,0.61258785]
[1752533152483,0.32762919,120150.0,120140.0,0.58761762]
[1752533153446,0.32762919,120150.0,120140.0,0.5959411]
[1752533154061,0.32762919,120150.0,120140.0,0.58761762]
[1752533154698,0.32762919,120150.0,120140.0,0.41282163]
[1752533154903,0.31930675,120150.0,120140.0,0.40494525]
[1752533155581,0.31930675,120150.0,120140.0,0.4132688]
[1752533155836,0.31930675,120150.0,120140.0,0.40494525]
[1752533155973,0.31930675,120150.0,120140.0,0.57974117]
[1752533156388,0.31930675,120150.0,120140.0,0.57974124]
[1752533159350,0.30567145,120150.0,120140.0,0.01033362]
[1752533159505,0.30567145,120150.0,120140.0,0.00201]
[1752533160123,0.30567145,120150.0,120140.0,0.01033362]
[1752533160328,0.30567145,120150.0,120140.0,0.01865717]
[1752533160537,0.30567145,120150.0,120140.0,0.01033362]
[1752533162965,0.30567145,120150.0,120140.0,0.34276404]
[1752533163188,0.30567145,120150.0,120140.0,0.00201]
[1752533163417,0.30770145,120150.0,120140.0,0.01033362]
[1752533163624,0.30770145,120150.0,120140.0,0.18512961]
[1752533164284,0.18002145,120150.0,120140.0,0.51756003]
[1752533164526,0.30762145,120150.0,120140.0,0.34276404]
[1752533164728,0.18002145,120150.0,120140.0,0.34276404]
[1752533165886,0.30762145,120150.0,120140.0,0.35108759]
[1752533166288,0.30762145,120150.0,120140.0,0.34276404]
[1752533166488,0.30762145,120150.0,120140.0,0.33444042]
[1752533166837,0.30762145,120150.0,120140.0,0.34276404]
[1752533167037,0.18002145,120150.0,120140.0,0.34276404]
[1752533167339,0.30762145,120150.0,120140.0,0.00201]
[1752533167531,0.30758145,120150.0,120140.0,0.00201]
[1752533167739,0.30758145,120150.0,120140.0,0.33444042]
[1752533167882,0.30758145,120150.0,120140.0,0.00201]
[1752533168549,0.18002145,120150.0,120140.0,0.00201]
[1752533168750,0.30766145,120150.0,120140.0,0.00201]
[1752533170436,0.30766145,120150.0,120140.0,0.01033362]
[1752533170641,0.30766145,120150.0,120140.0,0.00201]
[1752533173093,0.30766145,120150.0,120140.0,0.25134651]
[1752533173242,0.30766145,120150.0,120140.0,0.29101263]
[1752533173483,0.30766145,120150.0,120140.0,0.25134651]
[1752533174030,0.30766145,120150.0,120140.0,0.00201]
[1752533174234,0.29933859,120150.0,120140.0,0.25134651]
[1752533175082,0.29933859,120150.0,120140.0,0.25967013]
[1752533175389,0.29933859,120150.0,120140.0,0.29933625]
[1752533175576,0.29933859,120150.0,120140.0,0.25134651]
[1752533176503,0.29933859,120150.0,120140.0,0.25967013]
[1752533178371,0.30766138,120150.0,120140.0,0.25967013]
[1752533179593,0.30766138,120150.0,120140.0,0.25134651]
[1752533179733,0.30766138,120150.0,120140.0,0.25967013]
[1752533179937,0.30766138,120150.0,120140.0,0.26799368]
[1752533180137,0.32430688,120150.0,120140.0,0.48245572]
[1752533180350,0.32414688,120150.0,120140.0,0.43446612]
[1752533180665,0.32414688,120150.0,120140.0,0.17680606]
[1752533180987,0.31582396,120150.0,120140.0,0.43446605]
[1752533181300,0.32414688,120150.0,120140.0,0.43446605]
[1752533182267,0.31582396,120150.0,120140.0,0.4511128]
[1752533182494,0.16645859,120150.0,120140.0,0.71640221]
[1752533182705,0.31054368,120150.0,120140.0,0.72472583]
[1752533182909,0.19974884,120150.0,120140.0,0.7247259]
[1752533183145,0.31890605,120150.0,120140.0,0.7330491]
[1752533183431,0.31890605,120150.0,120140.0,0.7247259]
[1752533183643,0.32722884,120150.0,120140.0,0.46751266]
[1752533183857,0.32722884,120150.0,120140.0,0.44278939]
[1752533184065,0.19974884,120150.0,120140.0,0.45111266]
[1752533184283,0.32722891,120150.0,120140.0,0.43446605]
[1752533184691,0.33555169,120150.0,120140.0,0.43446612]
[1752533184864,0.33555163,120150.0,120140.0,0.43446612]
[1752533185301,0.33555163,120150.0,120140.0,0.17680606]
[1752533185302,0.32722926,120150.0,120140.0,0.17680606]
[1752533185510,0.32707834,120150.0,120140.0,0.43446605]
[1752533185718,0.33540126,120150.0,120140.0,0.43446612]
[1752533185929,0.32722926,120150.0,120140.0,0.4427896]
[1752533186556,0.19142682,120150.0,120140.0,0.00201]
[1752533186765,0.18311933,120140.0,120130.0,0.34]
[1752533186988,0.19145812,120130.0,120120.0,0.61491451]
[1752533187213,0.33650867,120130.0,120120.0,0.002]
[1752533187435,0.33971867,120130.0,120120.0,0.25133651]
[1752533187655,0.33971867,120130.0,120120.0,0.4344866]
[1752533187876,0.33971867,120130.0,120120.0,0.44281146]
[1752533188300,0.33971867,120130.0,120120.0,0.45113626]
[1752533188572,0.20519028,120130.0,120120.0,0.46148085]
[1752533188909,0.33275021,120130.0,120120.0,0.46148085]
[1752533189124,0.32425853,120130.0,120120.0,0.54468941]
[1752533189339,0.32425853,120130.0,120120.0,0.53636489]
[1752533189821,0.32425853,120130.0,120120.0,0.54468941]
[1752533190076,0.32425853,120130.0,120120.0,0.54768941]
[1752533190503,0.31593436,120130.0,120120.0,0.53936496]
[1752533190711,0.32425853,120130.0,120120.0,0.54768914]
[1752533191022,0.32425853,120130.0,120120.0,0.53936462]
[1752533191306,0.13584369,120130.0,120120.0,0.56283927]
[1752533191512,0.14416752,120130.0,120120.0,0.56283927]
[1752533193232,0.02497148,120130.0,120120.0,0.56283927]
[1752533193462,0.13584369,120130.0,120120.0,0.56283927]
[1752533193682,0.18606933,120140.0,120130.0,0.18313457]
[1752533193907,0.31558933,120140.0,120130.0,0.51568012]
[1752533194127,0.31558933,120140.0,120130.0,0.52400408]
[1752533194541,0.31558933,120140.0,120130.0,0.51568012]
[1752533195070,0.31558933,120140.0,120130.0,0.50735609]
[1752533195283,0.33088933,120140.0,120130.0,0.51768026]
[1752533195512,0.34718933,120140.0,120130.0,0.51768026]
[1752533196137,0.35548608,120140.0,120130.0,0.52600436]
[1752533196348,0.35548608,120140.0,120130.0,0.19345881]
[1752533196871,0.35548608,120140.0,120130.0,0.17681054]
[1752533197081,0.34716274,120140.0,120130.0,0.17681054]
[1752533197466,0.34716274,120140.0,120130.0,0.18513471]
[1752533198290,0.21135919,120140.0,120130.0,0.002]
[1752533198548,0.33883919,120140.0,120130.0,0.002]
[1752533199326,0.33883919,120140.0,120130.0,0.17681054]
[1752533199537,0.21135919,120140.0,120130.0,0.17681054]
[1752533199747,0.33895919,120140.0,120130.0,0.1684863]
[1752533200135,0.33895919,120140.0,120130.0,0.17681061]
[1752533201729,0.33895919,120140.0,120130.0,0.18513485]
[1752533202158,0.21135919,120140.0,120130.0,0.18513485]
[1752533202400,0.33895919,120140.0,120130.0,0.19345895]
[1752533203652,0.33895919,120140.0,120130.0,0.18513485]
[1752533203877,0.21135919,120140.0,120130.0,0.18513485]
[1752533204092,0.33895919,120140.0,120130.0,0.18513485]
[1752533204311,0.33895919,120140.0,120130.0,0.19345902]
[1752533204754,0.33895919,120140.0,120130.0,0.20178312]
[1752533209005,0.33895919,120140.0,120130.0,0.45117046]
[1752533209229,0.33895919,120140.0,120130.0,0.45949449]
[1752533209440,0.34728267,120140.0,120130.0,0.45949449]
[1752533210756,0.21968267,120140.0,120130.0,0.45949449]
[1752533210935,0.34720267,120140.0,120130.0,0.45949414]
[1752533213727,0.34720267,120140.0,120130.0,0.45117018]
[1752533214213,0.34720267,120140.0,120130.0,0.45949414]
[1752533215165,0.1727535,120140.0,120130.0,0.45949414]
[1752533215381,0.1740999,120140.0,120130.0,0.45949373]
[1752533215602,0.01331306,120140.0,120130.0,0.46151373]
[1752533215813,0.15739967,120140.0,120130.0,0.46151373]
[1752533217198,0.16572315,120140.0,120130.0,0.21212639]
[1752533217404,0.16572315,120140.0,120130.0,0.46151373]
[1752533217836,0.17425703,120140.0,120130.0,0.46151373]
[1752533218037,0.16572315,120140.0,120130.0,0.46151373]
[1752533219022,0.16572315,120140.0,120130.0,0.21212639]
[1752533219227,0.16572315,120140.0,120130.0,0.46151373]
[1752533219702,0.17411692,120140.0,120130.0,0.46151373]
[1752533220842,0.16572315,120140.0,120130.0,0.46151373]
[1752533221870,0.16277315,120140.0,120130.0,0.46151373]
[1752533222075,0.16073315,120140.0,120130.0,0.46151373]
[1752533223052,0.33246559,120140.0,120130.0,0.20380256]
[1752533223233,0.34802608,120140.0,120130.0,0.1934586]
[1752533223437,0.22062608,120140.0,120130.0,0.4511699]
[1752533223657,0.34806608,120140.0,120130.0,0.45949379]
[1752533223783,0.3563897,120140.0,120130.0,0.45949379]
[1752533223983,0.3480665,120140.0,120130.0,0.45949379]
[1752533225435,0.33974309,120140.0,120130.0,0.4511699]
[1752533226275,0.33974309,120140.0,120130.0,0.44284594]
[1752533228231,0.33974309,120140.0,120130.0,0.4511699]
[1752533229427,0.33974309,120140.0,120130.0,0.44284594]
[1752533230837,0.33974309,120140.0,120130.0,0.18513457]
[1752533231038,0.33141961,120140.0,120130.0,0.43452191]
[1752533231594,0.32309606,120140.0,120130.0,0.41787364]
[1752533231804,0.32309606,120140.0,120130.0,0.42619788]
[1752533232251,0.18733244,120140.0,120130.0,0.25138734]
[1752533232470,0.33039244,120140.0,120130.0,0.25138734]
[1752533232908,0.33039244,120140.0,120130.0,0.41787364]
[1752533233128,0.33039244,120140.0,120130.0,0.42619795]
[1752533233344,0.33039244,120140.0,120130.0,0.25971165]
[1752533233541,0.33039244,120140.0,120130.0,0.25138734]
[1752533234480,0.33039244,120140.0,120130.0,0.25971165]
[1752533234916,0.33039244,120140.0,120130.0,0.42619795]
[1752533238591,0.33039244,120140.0,120130.0,0.43452219]
[1752533238803,0.31469244,120140.0,120130.0,0.44284636]
[1752533239014,0.31453244,120140.0,120130.0,0.44284636]
[1752533239497,0.31453244,120140.0,120130.0,0.19345902]
[1752533239732,0.31453244,120140.0,120130.0,0.42619795]
[1752533239945,0.31453244,120140.0,120130.0,0.43452219]
[1752533240361,0.31453244,120140.0,120130.0,0.44284636]
[1752533240876,0.18733244,120140.0,120130.0,0.44284636]
[1752533241084,0.31453244,120140.0,120130.0,0.44284636]
[1752533241592,0.31453244,120140.0,120130.0,0.44284636]
[1752533243121,0.32285599,120140.0,120130.0,0.45117046]
[1752533243330,0.32285599,120140.0,120130.0,0.45949449]
[1752533243538,0.19565599,120140.0,120130.0,0.18513485]
[1752533243739,0.32277599,120140.0,120130.0,0.43452219]
[1752533244912,0.32277599,120140.0,120130.0,0.44284636]
[1752533249688,0.32277599,120140.0,120130.0,0.42619795]
[1752533249918,0.45241978,120140.0,120130.0,0.002]
[1752533250150,0.97286443,120140.0,120130.0,0.002]
[1752533250381,0.84586443,120140.0,120130.0,0.002]
[1752533250605,0.66076689,120140.0,120130.0,0.002]
[1752533251073,0.91015423,120140.0,120130.0,0.002]
[1752533251506,0.20711047,120130.0,120120.0,0.002]
[1752533251732,0.33411047,120130.0,120120.0,0.002]
[1752533251984,0.33920047,120130.0,120120.0,0.002]
[1752533252832,0.33920047,120130.0,120120.0,0.004]
[1752533256355,0.33920047,120130.0,120120.0,0.17050016]
[1752533257199,0.33920047,120130.0,120120.0,0.004]
[1752533257627,0.21220047,120130.0,120120.0,0.004]
[1752533257830,0.33912047,120130.0,120120.0,0.004]
[1752533258741,0.58850781,120130.0,120120.0,0.004]
[1752533259248,0.33912047,120130.0,120120.0,0.004]
[1752533259463,0.33908047,120130.0,120120.0,0.004]
[1752533260797,0.33908047,120130.0,120120.0,0.17050016]
[1752533261214,0.33908047,120130.0,120120.0,0.17882516]
[1752533262509,0.34740457,120130.0,120120.0,0.4365373]
[1752533262708,0.15690251,120130.0,120120.0,0.45318655]
[1752533263107,0.15690216,120130.0,120120.0,0.45515655]
[1752533265660,0.3317127,120130.0,120120.0,0.45515655]
[1752533266284,0.15690216,120130.0,120120.0,0.45515655]
[1752533269686,0.00832369,120130.0,120120.0,0.70454389]
[1752533269897,0.20148919,120140.0,120130.0,0.1914584]
[1752533270103,0.33867281,120140.0,120130.0,0.44084587]
[1752533270397,0.17220037,120140.0,120130.0,0.45749359]
[1752533270605,0.01341306,120140.0,120130.0,0.45946359]
[1752533270821,0.15180981,120140.0,120130.0,0.45946359]
[1752533271715,0.15180981,120140.0,120130.0,0.45887681]
[1752533271928,0.14348633,120140.0,120130.0,0.45987681]
[1752533272369,0.15180974,120140.0,120130.0,0.47527681]
[1752533272914,0.16013322,120140.0,120130.0,0.47527681]
[1752533274395,0.19144218,120140.0,120130.0,0.43424364]
[1752533274605,0.15181016,120140.0,120130.0,0.45921574]
[1752533274935,0.15181016,120140.0,120130.0,0.44381574]
[1752533277245,0.3213526,120140.0,120130.0,0.43549191]
[1752533277450,0.3233726,120140.0,120130.0,0.43549191]
[1752533277672,0.3233726,120140.0,120130.0,0.18610457]
[1752533277874,0.3233726,120140.0,120130.0,0.43549191]
[1752533278531,0.3233726,120140.0,120130.0,0.44381587]
[1752533280748,0.3233726,120140.0,120130.0,0.19442853]
[1752533280965,0.3233726,120140.0,120130.0,0.44381587]
[1752533283087,0.3233726,120140.0,120130.0,0.45213976]
[1752533283704,0.3233726,120140.0,120130.0,0.20275242]
[1752533283861,0.3233726,120140.0,120130.0,0.45213976]
[1752533284496,0.3233726,120140.0,120130.0,0.46046359]
[1752533284749,0.3233726,120140.0,120130.0,0.21107625]
[1752533284887,0.34001977,120140.0,120130.0,0.45213976]
[1752533286156,0.3316965,120140.0,120130.0,0.44381587]
[1752533291257,0.3316965,120140.0,120130.0,0.19442853]
[1752533291454,0.3316965,120140.0,120130.0,0.44381587]
[1752533292239,0.3316965,120140.0,120130.0,0.42716788]
[1752533292448,0.33917309,120140.0,120130.0,0.43549205]
[1752533292635,0.33917309,120140.0,120130.0,0.44381615]
[1752533293059,0.33917309,120140.0,120130.0,0.45214018]
[1752533293438,0.33917309,120140.0,120130.0,0.46046379]
[1752533293644,0.32337309,120140.0,120130.0,0.46046345]
[1752533294390,0.14025327,120140.0,120130.0,0.46046345]
[1752533294617,0.15180967,120140.0,120130.0,0.46046345]
[1752533294852,0.16013315,120140.0,120130.0,0.46046345]
[1752533296344,0.15180967,120140.0,120130.0,0.46046345]
[1752533296551,0.16013315,120140.0,120130.0,0.46046345]
[1752533296787,0.03329315,120140.0,120130.0,0.46046345]
[1752533296991,0.34829615,120140.0,120130.0,0.44381573]
[1752533297806,0.34829615,120140.0,120130.0,0.19442839]
[1752533297967,0.34829615,120140.0,120130.0,0.44381573]
[1752533299992,0.34829615,120140.0,120130.0,0.45213962]
[1752533301515,0.34829615,120140.0,120130.0,0.46046345]
[1752533303932,0.34829615,120140.0,120130.0,0.45213962]
[1752533309302,0.22145615,120140.0,120130.0,0.45213962]
[1752533309420,0.34829615,120140.0,120130.0,0.45213962]
[1752533309629,0.34813215,120140.0,120130.0,0.45213962]
[1752533310404,0.34813215,120140.0,120130.0,0.45016962]
[1752533310614,0.84642422,120140.0,120130.0,0.001]
[1752533310991,0.92777133,120140.0,120130.0,0.001]
[1752533311440,0.67838399,120140.0,120130.0,0.001]
[1752533312960,0.55154399,120140.0,120130.0,0.001]
[1752533313167,0.67834399,120140.0,120130.0,0.001]
[1752533315225,0.81681135,120140.0,120130.0,0.001]
[1752533315447,0.94361135,120140.0,120130.0,0.001]
[1752533315666,1.06619869,120140.0,120130.0,0.001]
[1752533315894,0.91677135,120140.0,120130.0,0.001]
[1752533316152,1.16615869,120140.0,120130.0,0.001]
[1752533316372,1.04357135,120140.0,120130.0,0.001]
[1752533316589,1.63295869,120140.0,120130.0,0.001]
[1752533316851,0.54741047,120130.0,120120.0,0.002]
[1752533317048,0.96454226,120130.0,120120.0,0.002]
[1752533317252,1.09134226,120130.0,120120.0,0.002]
[1752533317514,1.3407296,120130.0,120120.0,0.002]
[1752533318419,1.3417296,120130.0,120120.0,0.002]
[1752533324820,1.2149296,120130.0,120120.0,0.002]
[1752533325030,1.3417696,120130.0,120120.0,0.002]
[1752533326359,1.09238226,120130.0,120120.0,0.002]
[1752533333416,1.09234226,120130.0,120120.0,0.002]
[1752533335700,0.63483758,120130.0,120120.0,0.002]
[1752533335905,1.01102492,120130.0,120120.0,0.002]
[1752533341636,0.76163758,120130.0,120120.0,0.002]
[1752533341897,0.88422492,120130.0,120120.0,0.002]
[1752533342116,1.01102492,120130.0,120120.0,0.002]
[1752533342980,1.09234226,120130.0,120120.0,0.002]
[1752533343993,0.96554226,120130.0,120120.0,0.002]
[1752533344255,1.09234226,120130.0,120120.0,0.002]
[1752533345449,0.96554226,120130.0,120120.0,0.002]
[1752533345710,1.09234226,120130.0,120120.0,0.002]
[1752533346653,1.01102492,120130.0,120120.0,0.002]
[1752533348787,0.88422492,120130.0,120120.0,0.002]
[1752533348989,1.01102492,120130.0,120120.0,0.002]
[1752533349973,0.88422492,120130.0,120120.0,0.002]
[1752533350183,1.01102492,120130.0,120120.0,0.002]
[1752533351064,1.09234226,120130.0,120120.0,0.002]
[1752533351619,1.3417296,120130.0,120120.0,0.002]
[1752533352236,1.09234226,120130.0,120120.0,0.002]
[1752533354324,0.96554226,120130.0,120120.0,0.002]
[1752533354541,0.99452492,120130.0,120120.0,0.002]